Workbook

Sheet Curvas
A1: Liq. | B1: 2014-09-11
A2: Venc | B2: 2015-01-02
A3: Libor | B3: 0.23 | H3: Ticker | I3: Data | J3: DU | K3: DI | M3: DC | N3: FRA | O3: DDI
A4: Prêmio | B4: 99.67538527 | H4: v4 | I4: 2014-10-01 | J4: =NETWORKDAYS(Curvas!$B$1,I4,Feriados)-1 -> 14 | K4: 10.82 | M4: =Curvas!I4-Curvas!B1 -> 20 | O4: 7.18
A5: Dif. Libor | B5: =-(B3-B14)*100 -> 80.75388769 | H5: x4 | I5: 2014-11-03 | J5: =NETWORKDAYS(Curvas!$B$1,I5,Feriados)-1 -> 37 | K5: 10.82 | M5: =Curvas!I5-Curvas!$I$4 -> 33 | N5: 0.71 | O5: 3.15
H6: z4 | I6: 2014-12-01 | J6: =NETWORKDAYS(Curvas!$B$1,I6,Feriados)-1 -> 57 | K6: 10.82 | M6: =Curvas!I6-Curvas!$I$4 -> 61 | N6: 0.74 | O6: 2.33
A7: DC | B7: =B2-$B$1 -> 113 | H7: f5 | I7: 2015-01-02 | J7: =NETWORKDAYS(Curvas!$B$1,I7,Feriados)-1 -> 79 | K7: 10.83 | M7: =Curvas!I7-Curvas!$I$4 -> 93 | N7: 0.98 | O7: 2.08
A8: Dias 30/360 | B8: =DAYS360($B$1,B2) -> 111 | H8: j5 | I8: 2015-04-01 | J8: =NETWORKDAYS(Curvas!$B$1,I8,Feriados)-1 -> 140 | K8: 10.98 | M8: =Curvas!I8-Curvas!$I$4 -> 182 | N8: 0.97 | O8: 1.59
A9: DU | B9: =NETWORKDAYS($B$1,B2,Tab_Fer)-1 -> 79 | H9: N5 | I9: 2015-07-01 | J9: =NETWORKDAYS(Curvas!$B$1,I9,Feriados)-1 -> 201 | K9: 11.14 | M9: =Curvas!I9-Curvas!$I$4 -> 273 | N9: 1.16 | O9: 1.58
C10: Real | H10: v5 | I10: 2015-10-01 | J10: =NETWORKDAYS(Curvas!$B$1,I10,Feriados)-1 -> 266 | K10: 11.32 | M10: =Curvas!I10-Curvas!$I$4 -> 365 | N10: 1.28 | O10: 1.59
A11: Curva Pré | B11: =ROUND(CURVAPRE(J4:J14,K4:K14,B9,100,35),2) -> 10.83 | C11: =B59 -> 13 | H11: f6 | I11: 2016-01-04 | J11: =NETWORKDAYS(Curvas!$B$1,I11,Feriados)-1 -> 329 | K11: 11.48 | M11: =Curvas!I11-Curvas!$I$4 -> 460 | N11: 1.41 | O11: 1.66
A12: DI-Curto | B12: =Curvas!K4 -> 10.82 | H12: f17 | I12: 2017-01-02 | J12: =NETWORKDAYS(Curvas!$B$1,I12,Feriados)-1 -> 580 | K12: 11.59 | M12: =Curvas!I12-Curvas!$I$4 -> 824 | N12: 1.88 | O12: 2.01
A14: CC LIMPO | B14: =CupomCambial(B9,B7,B26,B28,J4:K12,M4:N12,B4) -> 1.037538877
A15: C.sujo | B15: =CupomCambial(B9,B7,$B$29,B28,J4:K14,M4:N17,B4) -> 2.046883502 | H15: BACEN | I15: US$ | J15: Di | K15: Cupom Cambial | L15: Pr. Libor
H16: Tradicional | I16: venda | J16: compra | K16: compra | L16: vende
H17: Reverso | I17: compra | J17: venda | K17: venda | L17: compra
A18: NDF | B18: =Futuro!J18 -> 2.358366375 | C18: Real
A19: US$ | B19: =DOLFUTURO($K$4,B11,B28,B25,J$4,B9,B7,$M$4) -> 2.35655274 | C19: =B60 -> 2.5 | H19: MERCADO | I19: US$ | J19: Di | K19: Cupom Cambial | L19: Pr. Libor
A20: Var. Cambial | B20: =(B19/$B$26-1)*36000/B7 -> 9.334689793 | H20: Tradicional | I20: compra | J20: venda | K20: venda | L20: compra
H21: Reverso | I21: venda | J21: compra | K21: compra | L21: vende
A24: C. Curto | B24: =IF($F$27=0,0,(((1+$K$4/100)^($J$4/252))*B26/B28*1000-1)*36000/$M$4) -> 1.49026108 | D24: PRÉ
A25: FRA | B25: =ROUND(CURVAFRA(M4:M12,N4:N12,B7,$K$4,36),3) -> 0.98 | I25: =B9 -> 79
A26: Spot | B26: =(B28-B27)/1000 -> 2.28947
A27: Casado | B27: 11.2 | F27: =Curvas!J4 -> 14 | G27: =B12 -> 10.82 | K27: =I25-F27 -> 65 | M27: =B11 -> 10.83
A28: 1o Futuro | B28: 2300.67
A29: Ptax | B29: 2.2967
D30: CÂMBIO | I30: =B7 -> 113 | J30: =B8 -> 111 | K30: (30/360)
A31: CURVA | B31: =((B32/100+1)^(1/2)-1)*200 -> 1.057301977 | D31: Ptax
A32: TIR | B32: =((1+B14*B7/36000)^(360/B8)-1)*100 -> 1.060096695 | D32: =B29 -> 2.2967 | F32: =Curvas!M4 -> 20 | G32: =B28/1000 -> 2.30067 | K32: =I30-F32 -> 93 | N32: =B19 -> 2.35655274
A33: COTAÇÂO | B33: =100/(1+B32/100)^((B8)/360) -> 99.67538525 | D33: Spot | E33: casado | F33: =(G32-D34)*1000 -> 11.2
D34: =B26 -> 2.28947
D36: fator | F36: =IF(F27=0,1,((1+G27/100)^(F27/252))*D34/G32) -> 1.000827923 | K36: =(K37/36000*K32)+1 -> 1.002531667
D37: taxa | F37: =IF(F32=0,0,(F36-1)*36000/F32) -> 1.49026108 | K37: =B25 -> 0.98
I38: =F36*K36 -> 1.003361686
F40: C. Limpo | I40: =(I38-1)*36000/I30 -> 1.070979456 | J40: =I40*I30/36000+1 -> 1.003361686 | K40: =100/J40 -> 99.66495776 | L40: =K40*10*D34/1.8 -> 1267.666282
F41: C.Sujo | I41: =(I38*D32/D34-1)*36000/I30 -> 2.080429684 | J41: =I41*I30/36000+1 -> 1.006530238 | K41: =100/J41 -> 99.35121297 | L41: =K41*10*D32/1.8 -> 1267.666282
F42: Nominal | I42: =((I43/100+1)^(1/2)-1)*200 -> 1.091415074 | J42: =(I42/200+1)^(J30/180) -> 1.003361686 | K42: =100/J42 -> 99.66495776 | L42: =K42*10*D34/1.8 -> 1267.666282
F43: Tir | I43: =((I40*I30/36000+1)^(360/J30)-1)*100 -> 1.094393041 | J43: =(I43/100+1)^(J30/360) -> 1.003361686 | K43: =100/J43 -> 99.66495776 | L43: =K43*10*D34/1.8 -> 1267.666282
C44: us$ | D44: 1000000
B45: Fluxo de caixa
G46: Resultado SWAP
C47: Ativo | D47: Passivo | H47: Hoje | J47: cupom | K47: Var cambial
A48: HOJE | G48: Posição cambial | H48: =D44*B49 -> 2289470 | J48: =B4/B33 -> 1 | K48: =B60/B49 -> 1.09195578 | L48: =H48*J48*K48 -> 2500000
A49: SPOT | B49: =B26 -> 2.28947 | D49: =B49*D44 -> 2289470 | I49: Var juros
C50: =D49 -> 2289470 | G50: Posição juros | H50: =H48 -> 2289470 | I50: =(1+B59/100)^(A57/252) -> 1.039057714 | L50: =H50*I50 -> 2378891.464
L52: =L48-L50 -> 121108.5367
A56: PRAZO | G56: Resultado consolidado
A57: =I25 -> 79
A58: VENCIMENTO | G58: =D63+L52 -> 0.0003857789561
A59: JUROS | B59: 13 | C59: =C50*(1+B59/100)^(A57/252) -> 2378891.464
A60: FUTURO | B60: 2.5 | D60: =D44*B60 -> 2500000
A63: RESULTADO | D63: =C59-D60 -> -121108.5363

Sheet Feriados
A1: 2003-01-01 | B1: 2003-03-03 | C1: 2003-03-04 | D1: 2003-04-18 | E1: 2003-04-21 | F1: 2003-05-01 | G1: 2003-06-19 | H1: 2003-09-07 | I1: 2003-10-12 | J1: 2003-11-02 | K1: 2003-11-15 | L1: 2003-12-25
A2: 2004-01-01 | B2: 2004-02-23 | C2: 2004-02-24 | D2: 2004-04-09 | E2: 2004-04-21 | F2: 2004-05-01 | G2: 2004-06-10 | H2: 2004-09-07 | I2: 2004-10-12 | J2: 2004-11-02 | K2: 2004-11-15 | L2: 2004-12-25
A3: 2005-01-01 | B3: 2005-02-07 | C3: 2005-02-08 | D3: 2005-03-25 | E3: 2005-04-21 | F3: 2005-05-01 | G3: 2005-05-26 | H3: 2005-09-07 | I3: 2005-10-12 | J3: 2005-11-02 | K3: 2005-11-15 | L3: 2005-12-25
A4: 2006-01-01 | B4: 2006-02-27 | C4: 2006-02-28 | D4: 2006-04-14 | E4: 2006-04-21 | F4: 2006-05-01 | G4: 2006-06-15 | H4: 2006-09-07 | I4: 2006-10-12 | J4: 2006-11-02 | K4: 2006-11-15 | L4: 2006-12-25
A5: 2007-01-01 | B5: 2007-02-19 | C5: 2007-02-20 | D5: 2007-04-06 | E5: 2007-04-21 | F5: 2007-05-01 | G5: 2007-06-07 | H5: 2007-09-07 | I5: 2007-10-12 | J5: 2007-11-02 | K5: 2007-11-15 | L5: 2007-12-25
A6: 2008-01-01 | B6: 2008-02-04 | C6: 2008-02-05 | D6: 2008-03-21 | E6: 2008-04-21 | F6: 2008-05-01 | G6: 2008-05-22 | H6: 2008-09-07 | I6: 2008-10-12 | J6: 2008-11-02 | K6: 2008-11-15 | L6: 2008-12-25
A7: 2009-01-01 | B7: 2009-02-23 | C7: 2009-02-24 | D7: 2009-04-10 | E7: 2009-04-21 | F7: 2009-05-01 | G7: 2009-06-11 | H7: 2009-09-07 | I7: 2009-10-12 | J7: 2009-11-02 | K7: 2009-11-15 | L7: 2009-12-25
A8: 2010-01-01 | B8: 2010-02-15 | C8: 2010-02-16 | D8: 2010-04-02 | E8: 2010-04-21 | F8: 2010-05-01 | G8: 2010-06-03 | H8: 2010-09-07 | I8: 2010-10-12 | J8: 2010-11-02 | K8: 2010-11-15 | L8: 2010-12-25
A9: 2011-01-01 | B9: 2011-03-07 | C9: 2011-03-08 | D9: 2011-04-21 | E9: 2011-04-22 | F9: 2011-05-01 | G9: 2011-06-23 | H9: 2011-09-07 | I9: 2011-10-12 | J9: 2011-11-02 | K9: 2011-11-15 | L9: 2011-12-25
A10: 2012-01-01 | B10: 2012-02-20 | C10: 2012-02-21 | D10: 2012-04-06 | E10: 2012-04-21 | F10: 2012-05-01 | G10: 2012-06-07 | H10: 2012-09-07 | I10: 2012-10-12 | J10: 2012-11-02 | K10: 2012-11-15 | L10: 2012-12-25
A11: 2013-01-01 | B11: 2013-02-11 | C11: 2013-02-12 | D11: 2013-03-29 | E11: 2013-04-21 | F11: 2013-05-01 | G11: 2013-05-30 | H11: 2013-09-07 | I11: 2013-10-12 | J11: 2013-11-02 | K11: 2013-11-15 | L11: 2013-12-25
A12: 2014-01-01 | B12: 2014-03-03 | C12: 2014-03-04 | D12: 2014-04-18 | E12: 2014-04-21 | F12: 2014-05-01 | G12: 2014-06-19 | H12: 2014-09-07 | I12: 2014-10-12 | J12: 2014-11-02 | K12: 2014-11-15 | L12: 2014-12-25
A13: 2015-01-01 | B13: 2015-02-16 | C13: 2015-02-17 | D13: 2015-04-03 | E13: 2015-04-21 | F13: 2015-05-01 | G13: 2015-06-04 | H13: 2015-09-07 | I13: 2015-10-12 | J13: 2015-11-02 | K13: 2015-11-15 | L13: 2015-12-25
A14: 2016-01-01 | B14: 2016-02-08 | C14: 2016-02-09 | D14: 2016-03-25 | E14: 2016-04-21 | F14: 2016-05-01 | G14: 2016-05-26 | H14: 2016-09-07 | I14: 2016-10-12 | J14: 2016-11-02 | K14: 2016-11-15 | L14: 2016-12-25
A15: 2017-01-01 | B15: 2017-02-27 | C15: 2017-02-28 | D15: 2017-04-14 | E15: 2017-04-21 | F15: 2017-05-01 | G15: 2017-06-15 | H15: 2017-09-07 | I15: 2017-10-12 | J15: 2017-11-02 | K15: 2017-11-15 | L15: 2017-12-25
A16: 2018-01-01 | B16: 2018-02-12 | C16: 2018-02-13 | D16: 2018-03-30 | E16: 2018-04-21 | F16: 2018-05-01 | G16: 2018-05-31 | H16: 2018-09-07 | I16: 2018-10-12 | J16: 2018-11-02 | K16: 2018-11-15 | L16: 2018-12-25
A17: 2019-01-01 | B17: 2019-03-04 | C17: 2019-03-05 | D17: 2019-04-19 | E17: 2019-04-21 | F17: 2019-05-01 | G17: 2019-06-20 | H17: 2019-09-07 | I17: 2019-10-12 | J17: 2019-11-02 | K17: 2019-11-15 | L17: 2019-12-25
A18: 2020-01-01 | B18: 2020-02-24 | C18: 2020-02-25 | D18: 2020-04-10 | E18: 2020-04-21 | F18: 2020-05-01 | G18: 2020-06-11 | H18: 2020-09-07 | I18: 2020-10-12 | J18: 2020-11-02 | K18: 2020-11-15 | L18: 2020-12-25
A19: 2021-01-01 | B19: 2021-02-15 | C19: 2021-02-16 | D19: 2021-04-02 | E19: 2021-04-21 | F19: 2021-05-01 | G19: 2021-06-03 | H19: 2021-09-07 | I19: 2021-10-12 | J19: 2021-11-02 | K19: 2021-11-15 | L19: 2021-12-25
A20: 2022-01-01 | B20: 2022-02-28 | C20: 2022-03-01 | D20: 2022-04-15 | E20: 2022-04-21 | F20: 2022-05-01 | G20: 2022-06-16 | H20: 2022-09-07 | I20: 2022-10-12 | J20: 2022-11-02 | K20: 2022-11-15 | L20: 2022-12-25
A21: 2023-01-01 | B21: 2023-02-20 | C21: 2023-02-21 | D21: 2023-04-07 | E21: 2023-04-21 | F21: 2023-05-01 | G21: 2023-06-08 | H21: 2023-09-07 | I21: 2023-10-12 | J21: 2023-11-02 | K21: 2023-11-15 | L21: 2023-12-25
A22: 2024-01-01 | B22: 2024-02-12 | C22: 2024-02-13 | D22: 2024-03-29 | E22: 2024-04-21 | F22: 2024-05-01 | G22: 2024-05-30 | H22: 2024-09-07 | I22: 2024-10-12 | J22: 2024-11-02 | K22: 2024-11-15 | L22: 2024-12-25
A23: 2025-01-01 | B23: 2025-03-03 | C23: 2025-03-04 | D23: 2025-04-18 | E23: 2025-04-21 | F23: 2025-05-01 | G23: 2025-06-19 | H23: 2025-09-07 | I23: 2025-10-12 | J23: 2025-11-02 | K23: 2025-11-15 | L23: 2025-12-25
A24: 2026-01-01 | B24: 2026-02-16 | C24: 2026-02-17 | D24: 2026-04-03 | E24: 2026-04-21 | F24: 2026-05-01 | G24: 2026-06-04 | H24: 2026-09-07 | I24: 2026-10-12 | J24: 2026-11-02 | K24: 2026-11-15 | L24: 2026-12-25
A25: 2027-01-01 | B25: 2027-02-08 | C25: 2027-02-09 | D25: 2027-03-26 | E25: 2027-04-21 | F25: 2027-05-01 | G25: 2027-05-27 | H25: 2027-09-07 | I25: 2027-10-12 | J25: 2027-11-02 | K25: 2027-11-15 | L25: 2027-12-25
A26: 2028-01-01 | B26: 2028-02-28 | C26: 2028-02-29 | D26: 2028-04-14 | E26: 2028-04-21 | F26: 2028-05-01 | G26: 2028-06-15 | H26: 2028-09-07 | I26: 2028-10-12 | J26: 2028-11-02 | K26: 2028-11-15 | L26: 2028-12-25
A27: 2029-01-01 | B27: 2029-02-12 | C27: 2029-02-13 | D27: 2029-03-30 | E27: 2029-04-21 | F27: 2029-05-01 | G27: 2029-05-31 | H27: 2029-09-07 | I27: 2029-10-12 | J27: 2029-11-02 | K27: 2029-11-15 | L27: 2029-12-25
A28: 2030-01-01 | B28: 2030-03-04 | C28: 2030-03-05 | D28: 2030-04-19 | E28: 2030-04-21 | F28: 2030-05-01 | G28: 2030-06-20 | H28: 2030-09-07 | I28: 2030-10-12 | J28: 2030-11-02 | K28: 2030-11-15 | L28: 2030-12-25
A29: 2031-01-01 | B29: 2031-02-24 | C29: 2031-02-25 | D29: 2031-04-11 | E29: 2031-04-21 | F29: 2031-05-01 | G29: 2031-06-12 | H29: 2031-09-07 | I29: 2031-10-12 | J29: 2031-11-02 | K29: 2031-11-15 | L29: 2031-12-25
A30: 2032-01-01 | B30: 2032-02-09 | C30: 2032-02-10 | D30: 2032-03-26 | E30: 2032-04-21 | F30: 2032-05-01 | G30: 2032-05-27 | H30: 2032-09-07 | I30: 2032-10-12 | J30: 2032-11-02 | K30: 2032-11-15 | L30: 2032-12-25
A31: 2033-01-01 | B31: 2033-02-28 | C31: 2033-03-01 | D31: 2033-04-15 | E31: 2033-04-21 | F31: 2033-05-01 | G31: 2033-06-16 | H31: 2033-09-07 | I31: 2033-10-12 | J31: 2033-11-02 | K31: 2033-11-15 | L31: 2033-12-25
A32: 2034-01-01 | B32: 2034-02-20 | C32: 2034-02-21 | D32: 2034-04-07 | E32: 2034-04-21 | F32: 2034-05-01 | G32: 2034-06-08 | H32: 2034-09-07 | I32: 2034-10-12 | J32: 2034-11-02 | K32: 2034-11-15 | L32: 2034-12-25
A33: 2035-01-01 | B33: 2035-02-05 | C33: 2035-02-06 | D33: 2035-03-23 | E33: 2035-04-21 | F33: 2035-05-01 | G33: 2035-05-24 | H33: 2035-09-07 | I33: 2035-10-12 | J33: 2035-11-02 | K33: 2035-11-15 | L33: 2035-12-25
A34: 2036-01-01 | B34: 2036-02-25 | C34: 2036-02-26 | D34: 2036-04-11 | E34: 2036-04-21 | F34: 2036-05-01 | G34: 2036-06-12 | H34: 2036-09-07 | I34: 2036-10-12 | J34: 2036-11-02 | K34: 2036-11-15 | L34: 2036-12-25
A35: 2037-01-01 | B35: 2037-02-16 | C35: 2037-02-17 | D35: 2037-04-03 | E35: 2037-04-21 | F35: 2037-05-01 | G35: 2037-06-04 | H35: 2037-09-07 | I35: 2037-10-12 | J35: 2037-11-02 | K35: 2037-11-15 | L35: 2037-12-25
A36: 2038-01-01 | B36: 2038-03-08 | C36: 2038-03-09 | D36: 2038-04-21 | E36: 2038-04-23 | F36: 2038-05-01 | G36: 2038-06-24 | H36: 2038-09-07 | I36: 2038-10-12 | J36: 2038-11-02 | K36: 2038-11-15 | L36: 2038-12-25
A37: 2039-01-01 | B37: 2039-02-21 | C37: 2039-02-22 | D37: 2039-04-08 | E37: 2039-04-21 | F37: 2039-05-01 | G37: 2039-06-09 | H37: 2039-09-07 | I37: 2039-10-12 | J37: 2039-11-02 | K37: 2039-11-15 | L37: 2039-12-25
A38: 2040-01-01 | B38: 2040-02-13 | C38: 2040-02-14 | D38: 2040-03-30 | E38: 2040-04-21 | F38: 2040-05-01 | G38: 2040-05-31 | H38: 2040-09-07 | I38: 2040-10-12 | J38: 2040-11-02 | K38: 2040-11-15 | L38: 2040-12-25
A39: 2041-01-01 | B39: 2041-03-04 | C39: 2041-03-05 | D39: 2041-04-19 | E39: 2041-04-21 | F39: 2041-05-01 | G39: 2041-06-20 | H39: 2041-09-07 | I39: 2041-10-12 | J39: 2041-11-02 | K39: 2041-11-15 | L39: 2041-12-25
A40: 2042-01-01 | B40: 2042-02-17 | C40: 2042-02-18 | D40: 2042-04-04 | E40: 2042-04-21 | F40: 2042-05-01 | G40: 2042-06-05 | H40: 2042-09-07 | I40: 2042-10-12 | J40: 2042-11-02 | K40: 2042-11-15 | L40: 2042-12-25
A41: 2043-01-01 | B41: 2043-02-09 | C41: 2043-02-10 | D41: 2043-03-27 | E41: 2043-04-21 | F41: 2043-05-01 | G41: 2043-05-28 | H41: 2043-09-07 | I41: 2043-10-12 | J41: 2043-11-02 | K41: 2043-11-15 | L41: 2043-12-25
A42: 2044-01-01 | B42: 2044-02-29 | C42: 2044-03-01 | D42: 2044-04-15 | E42: 2044-04-21 | F42: 2044-05-01 | G42: 2044-06-16 | H42: 2044-09-07 | I42: 2044-10-12 | J42: 2044-11-02 | K42: 2044-11-15 | L42: 2044-12-25
A43: 2045-01-01 | B43: 2045-02-20 | C43: 2045-02-21 | D43: 2045-04-07 | E43: 2045-04-21 | F43: 2045-05-01 | G43: 2045-06-08 | H43: 2045-09-07 | I43: 2045-10-12 | J43: 2045-11-02 | K43: 2045-11-15 | L43: 2045-12-25
A44: 2046-01-01 | B44: 2046-02-05 | C44: 2046-02-06 | D44: 2046-03-23 | E44: 2046-04-21 | F44: 2046-05-01 | G44: 2046-05-24 | H44: 2046-09-07 | I44: 2046-10-12 | J44: 2046-11-02 | K44: 2046-11-15 | L44: 2046-12-25
A45: 2047-01-01 | B45: 2047-02-25 | C45: 2047-02-26 | D45: 2047-04-12 | E45: 2047-04-21 | F45: 2047-05-01 | G45: 2047-06-13 | H45: 2047-09-07 | I45: 2047-10-12 | J45: 2047-11-02 | K45: 2047-11-15 | L45: 2047-12-25
A46: 2048-01-01 | B46: 2048-02-17 | C46: 2048-02-18 | D46: 2048-04-03 | E46: 2048-04-21 | F46: 2048-05-01 | G46: 2048-06-04 | H46: 2048-09-07 | I46: 2048-10-12 | J46: 2048-11-02 | K46: 2048-11-15 | L46: 2048-12-25
A47: 2049-01-01 | B47: 2049-03-01 | C47: 2049-03-02 | D47: 2049-04-16 | E47: 2049-04-21 | F47: 2049-05-01 | G47: 2049-06-17 | H47: 2049-09-07 | I47: 2049-10-12 | J47: 2049-11-02 | K47: 2049-11-15 | L47: 2049-12-25
A48: 2050-01-01 | B48: 2050-02-21 | C48: 2050-02-22 | D48: 2050-04-08 | E48: 2050-04-21 | F48: 2050-05-01 | G48: 2050-06-09 | H48: 2050-09-07 | I48: 2050-10-12 | J48: 2050-11-02 | K48: 2050-11-15 | L48: 2050-12-25
A49: 2051-01-01 | B49: 2051-02-13 | C49: 2051-02-14 | D49: 2051-03-31 | E49: 2051-04-21 | F49: 2051-05-01 | G49: 2051-06-01 | H49: 2051-09-07 | I49: 2051-10-12 | J49: 2051-11-02 | K49: 2051-11-15 | L49: 2051-12-25
A50: 2052-01-01 | B50: 2052-03-04 | C50: 2052-03-05 | D50: 2052-04-19 | E50: 2052-04-21 | F50: 2052-05-01 | G50: 2052-06-20 | H50: 2052-09-07 | I50: 2052-10-12 | J50: 2052-11-02 | K50: 2052-11-15 | L50: 2052-12-25
A51: 2053-01-01 | B51: 2053-02-17 | C51: 2053-02-18 | D51: 2053-04-04 | E51: 2053-04-21 | F51: 2053-05-01 | G51: 2053-06-05 | H51: 2053-09-07 | I51: 2053-10-12 | J51: 2053-11-02 | K51: 2053-11-15 | L51: 2053-12-25
A52: 2054-01-01 | B52: 2054-02-09 | C52: 2054-02-10 | D52: 2054-03-27 | E52: 2054-04-21 | F52: 2054-05-01 | G52: 2054-05-28 | H52: 2054-09-07 | I52: 2054-10-12 | J52: 2054-11-02 | K52: 2054-11-15 | L52: 2054-12-25
A53: 2055-01-01 | B53: 2055-03-01 | C53: 2055-03-02 | D53: 2055-04-16 | E53: 2055-04-21 | F53: 2055-05-01 | G53: 2055-06-17 | H53: 2055-09-07 | I53: 2055-10-12 | J53: 2055-11-02 | K53: 2055-11-15 | L53: 2055-12-25
A54: 2056-01-01 | B54: 2056-02-14 | C54: 2056-02-15 | D54: 2056-03-31 | E54: 2056-04-21 | F54: 2056-05-01 | G54: 2056-06-01 | H54: 2056-09-07 | I54: 2056-10-12 | J54: 2056-11-02 | K54: 2056-11-15 | L54: 2056-12-25
A55: 2057-01-01 | B55: 2057-03-05 | C55: 2057-03-06 | D55: 2057-04-20 | E55: 2057-04-21 | F55: 2057-05-01 | G55: 2057-06-21 | H55: 2057-09-07 | I55: 2057-10-12 | J55: 2057-11-02 | K55: 2057-11-15 | L55: 2057-12-25
A56: 2058-01-01 | B56: 2058-02-25 | C56: 2058-02-26 | D56: 2058-04-12 | E56: 2058-04-21 | F56: 2058-05-01 | G56: 2058-06-13 | H56: 2058-09-07 | I56: 2058-10-12 | J56: 2058-11-02 | K56: 2058-11-15 | L56: 2058-12-25
A57: 2059-01-01 | B57: 2059-02-10 | C57: 2059-02-11 | D57: 2059-03-28 | E57: 2059-04-21 | F57: 2059-05-01 | G57: 2059-05-29 | H57: 2059-09-07 | I57: 2059-10-12 | J57: 2059-11-02 | K57: 2059-11-15 | L57: 2059-12-25
A58: 2060-01-01 | B58: 2060-03-01 | C58: 2060-03-02 | D58: 2060-04-16 | E58: 2060-04-21 | F58: 2060-05-01 | G58: 2060-06-17 | H58: 2060-09-07 | I58: 2060-10-12 | J58: 2060-11-02 | K58: 2060-11-15 | L58: 2060-12-25
A59: 2061-01-01 | B59: 2061-02-21 | C59: 2061-02-22 | D59: 2061-04-08 | E59: 2061-04-21 | F59: 2061-05-01 | G59: 2061-06-09 | H59: 2061-09-07 | I59: 2061-10-12 | J59: 2061-11-02 | K59: 2061-11-15 | L59: 2061-12-25
A60: 2062-01-01 | B60: 2062-02-06 | C60: 2062-02-07 | D60: 2062-03-24 | E60: 2062-04-21 | F60: 2062-05-01 | G60: 2062-05-25 | H60: 2062-09-07 | I60: 2062-10-12 | J60: 2062-11-02 | K60: 2062-11-15 | L60: 2062-12-25
A61: 2063-01-01 | B61: 2063-02-26 | C61: 2063-02-27 | D61: 2063-04-13 | E61: 2063-04-21 | F61: 2063-05-01 | G61: 2063-06-14 | H61: 2063-09-07 | I61: 2063-10-12 | J61: 2063-11-02 | K61: 2063-11-15 | L61: 2063-12-25
A62: 2064-01-01 | B62: 2064-02-18 | C62: 2064-02-19 | D62: 2064-04-04 | E62: 2064-04-21 | F62: 2064-05-01 | G62: 2064-06-05 | H62: 2064-09-07 | I62: 2064-10-12 | J62: 2064-11-02 | K62: 2064-11-15 | L62: 2064-12-25
A63: 2065-01-01 | B63: 2065-02-09 | C63: 2065-02-10 | D63: 2065-03-27 | E63: 2065-04-21 | F63: 2065-05-01 | G63: 2065-05-28 | H63: 2065-09-07 | I63: 2065-10-12 | J63: 2065-11-02 | K63: 2065-11-15 | L63: 2065-12-25
A64: 2066-01-01 | B64: 2066-02-22 | C64: 2066-02-23 | D64: 2066-04-09 | E64: 2066-04-21 | F64: 2066-05-01 | G64: 2066-06-10 | H64: 2066-09-07 | I64: 2066-10-12 | J64: 2066-11-02 | K64: 2066-11-15 | L64: 2066-12-25
A65: 2067-01-01 | B65: 2067-02-14 | C65: 2067-02-15 | D65: 2067-04-01 | E65: 2067-04-21 | F65: 2067-05-01 | G65: 2067-06-02 | H65: 2067-09-07 | I65: 2067-10-12 | J65: 2067-11-02 | K65: 2067-11-15 | L65: 2067-12-25
A66: 2068-01-01 | B66: 2068-03-05 | C66: 2068-03-06 | D66: 2068-04-20 | E66: 2068-04-21 | F66: 2068-05-01 | G66: 2068-06-21 | H66: 2068-09-07 | I66: 2068-10-12 | J66: 2068-11-02 | K66: 2068-11-15 | L66: 2068-12-25
A67: 2069-01-01 | B67: 2069-02-25 | C67: 2069-02-26 | D67: 2069-04-12 | E67: 2069-04-21 | F67: 2069-05-01 | G67: 2069-06-13 | H67: 2069-09-07 | I67: 2069-10-12 | J67: 2069-11-02 | K67: 2069-11-15 | L67: 2069-12-25
A68: 2070-01-01 | B68: 2070-02-10 | C68: 2070-02-11 | D68: 2070-03-28 | E68: 2070-04-21 | F68: 2070-05-01 | G68: 2070-05-29 | H68: 2070-09-07 | I68: 2070-10-12 | J68: 2070-11-02 | K68: 2070-11-15 | L68: 2070-12-25

Sheet DDI_Fra
A1: 1 | B1: Mercado e DDI
C3: taxa | D3: 5.25 | E3: 60 | F3: dc | H3: PU
E4: 40 | F4: du | G4: 2.673 | H4: =100000/(1+D3/100*E3/360) -> 99132.58984
C7: No resgate | E7: CDI | G7: ptax | H7: =H4*(1+E8/100)^(E4/252)*G4/G8 -> 100829.1162
E8: 19.25 | G8: 2.7025
C10: Resultado | E10: =(100000-H7)*G8/2 -> -1120.343248 | F10: Para o vendedor o contrato
A12: 2 | B12: Mercado de FRA | D12: 200 | E12: 1.45 | G12: =G15-G14 -> 93 | I12: ***
B14: PU Ajuste DDI Curto | E14: =(((100000/I14)-1)*360/G14)*100 -> 2.589961256 | G14: 20 | I14: 99856.32
B15: PU Ajuste DDI Longo | E15: =(((E14/100*G14/360)+1)*((E12/100*G12/360)+1)-1)*360/(G15)*100 -> 1.653480145 | G15: 113 | I15: =100000/(1+E15/100*G15/360) -> 99483.67075
B16: No. Cts Curtos | D16: =D12/(1+E12/100*G12/360) -> 199.2536291
A19: 3
D20: Qde | E20: Taxa | G20: Prazo | I20: PU
B21: Mercado de FRA | D21: 100 | E21: 0.98 | G21: =Curvas!M7 -> 93 | I21: ***
B23: PU Ajuste DDI Curto | E23: =(((100000/I23)-1)*360/G23)*100 -> 7.179965473 | G23: =Curvas!M4 -> 20 | I23: 99602.69782
B24: PU Ajuste DDI Longo | E24: 2.08 | G24: =G23+G21 -> 113 | I24: =100000/(1+E24/100*G24/360) -> 99351.3461
B25: No. Cts Curtos | D25: =D21/(1+E21/100*G21/360) -> 99.74747265
A28: 4 | B28: Mercado de FRA | D28: 100 | E28: 0.99 | G28: 93 | I28: ***
B30: PU Ajuste DDI Curto | E30: =(((100000/I30)-1)*360/G30)*100 -> -40.14995159 | G30: =G23-1 -> 19 | I30: 102164.9
B31: PU Ajuste DDI Longo | E31: =(((100000/I31)-1)*360/G31)*100 -> -6.01 | G31: =G24-1 -> 112 | I31: =F48 -> 101905.4046
B32: No. Cts Curtos | D32: =D28/(1+E28/100*G28/360) -> 99.74490241
A34: 5
D35: Qde | E35: Taxa | G35: Prazo | I35: PU
B36: Mercado de FRA | D36: 100 | E36: 2.75 | G36: =81 -> 81 | I36: ***
B38: PU Ajuste DDI Curto | E38: =(((100000/I38)-1)*360/G38)*100 -> 6.268149782 | G38: 21 | I38: 99635.69
B39: PU Ajuste DDI Longo | E39: =(((E38/100*G38/360)+1)*((E36/100*G36/360)+1)-1)*360/(G39)*100 -> 3.482309933 | G39: =G38+G36 -> 102 | I39: =100000/(1+E39/100*G39/360) -> 99022.98528
B40: No. Cts Curtos | D40: =D36/(1+E36/100*G36/360) -> 99.38505497
A42: 6
B43: Ajustes DDI Jan/15
B44: 2015-01-02 | D44: Pc Ajuste | E44: DC | F44: PU | G44: PU AJ. | H44: CDI | I44: PTAX
B45: 2014-09-11 | D45: 2.08 | E45: =B44-B45 -> 113 | F45: =100000/(1+D45/100*E45/360) -> 99351.3461 | H45: 10.81 | I45: 2.2967 | K45: Dif pontos | L45: Vr. Ajuste
B48: 2014-09-12 | D48: -6.01 | E48: =B44-B48 -> 112 | F48: =100000/(1+D48/100*E48/360) -> 101905.4046 | G48: =TRUNC((1+H45/100)^(1/252)/(I48/I45),6)*F45 -> 99769.71462 | H48: 10.81 | I48: 2.288 | K48: =F48-G48 -> 2135.689991 | L48: =K48*I48/2 -> 2443.22935
A51: 7 | B51: Ajustes DDI Out/14
B52: 2014-10-01 | D52: Pc Ajuste | E52: DC | F52: PU | G52: PU AJ. | H52: CDI | I52: PTAX
B53: 2014-09-11 | D53: 7.18 | E53: =B52-B53 -> 20 | F53: =100000/(1+D53/100*E53/360) -> 99602.69591 | H53: 10.81 | I53: 2.2967 | K53: Dif pontos | L53: Vr. Ajuste
B56: 2014-09-12 | D56: -40.14995116 | E56: =B52-B56 -> 19 | F56: =100000/(1+D56/100*E56/360) -> 102164.9 | G56: =TRUNC((1+H53/100)^(1/252)/(I56/I53),6)*F53 -> 100022.1229 | H56: 10.81 | I56: 2.288 | K56: =F56-G56 -> 2142.777111 | L56: =K56*I56/2 -> 2451.337015
A59: 8 | B59: Ajustes DDI posição vendida de 200 cts
C61: Taxa | D61: Saques | F61: Taxa Cetip | G61: PTAX800 | H61: PU | I61: PU Cor. | J61: Ajuste | K61: Ajuste
C62: Cupom | D62: (DU) | E62: DC | F62: ( % aa 252) | K62: Acum.
D63: 6 | E63: 8 | G63: 2.225
C64: 7.7 | D64: 5 | E64: 7 | F64: 10.95 | G64: 2.221 | H64: =100000/(1+C64/100*E64/360) -> 99850.50161
C65: 7.4 | D65: 4 | E65: 4 | F65: 11.05 | G65: 2.215 | H65: 99917.84533 | I65: =H64*L65*G63/G64 -> 100071.5863 | L65: =(1+F64/100)^(1/252) -> 1.000412424
C66: 7.6 | D66: 3 | E66: 3 | F66: 11 | G66: 2.223 | H66: 99936.70675 | I66: =H65*L66*G64/G65 -> 100230.1816 | J66: =(I65-H65)*G65/2 -> 170.2681774 | K66: =J66*200 -> 34053.63549 | L66: =(1+F65/100)^(1/252) -> 1.000416001
C67: 7.9 | D67: 2 | E67: 2 | F67: 10.9 | G67: 2.228 | H67: 99956.13037 | I67: =H66*L67*G65/G66 -> 99618.30658 | J67: =(I66-H66)*G66/2 -> 326.1973262 | K67: =J67*200+K66 -> 99293.10073 | L67: =(1+F66/100)^(1/252) -> 1.000414213
C68: 7.7 | D68: 1 | E68: 1 | F68: 11 | G68: 2.231 | H68: 99978.61568 | I68: =H67*L68*G66/G67 -> 99772.76564 | J68: -376.3356987 | K68: =J68*200+K67 -> 24025.96099 | L68: =(1+F67/100)^(1/252) -> 1.000410635
D69: 0 | E69: 0 | G69: 2.227 | H69: 100000 | I69: =H68*L69*G67/G68 -> 99885.53233 | J69: -229.6257216 | K69: -21899.18332 | L69: =(1+F68/100)^(1/252) -> 1.000414213
J70: -127.4597523 | K70: -47391.13378
A73: 9
C76: DDI | D76: Dias corridos | E76: DI | F76: Dias úteis
B77: vctoMAI | C77: 99917.24 | D77: 42 | E77: 98061.05 | F77: 29
B78: vctoJUN | C78: 99639.31 | D78: 68 | E78: 96598.5 | F78: 47
B79: vctoJUL | C79: 99338.57 | D79: 98 | E79: 95080.36 | F79: 69
B80: ptax compra | C80: 2.728
B81: ptax venda | C81: 2.7288
C83: Vcto Mai | D83: Vcto Jun | E83: Vcto Jul
B84: Tx impl DI | C84: =100000/E77 -> 1.019772886 | D84: =100000/E78 -> 1.035212762 | E84: =100000/E79 -> 1.051741916
B85: Tx impl DDI | C85: =100000/C77 -> 1.000828285 | D85: =100000/C78 -> 1.003619957 | E85: =100000/C79 -> 1.00665834
B86: (1+ iR$)/(1+iUS$) | C86: =C84/C85 -> 1.018928922 | D86: =D84/D85 -> 1.031478853 | E86: 1.044785379
B87: Dólar para compra | C87: =$C$80*C86 -> 2.7796381 | D87: =$C$80*D86 -> 2.813874312 | E87: =$C$80*E86 -> 2.850174515
B88: Dólar para venda | C88: =$C$81*C86 -> 2.780453243 | D88: =$C$81*D86 -> 2.814699495 | E88: =$C$81*E86 -> 2.851010343
A91: 10
B93: Dados | C93: 2014-12-28 | E93: Tx Implic. | G93: Us $ Fut
B94: Dólar à vista | C94: 1.951
B95: DI futuro Mar | C95: 97585 | E95: =100000/C95 -> 1.024747656 | G95: =C94*E95/E96 -> 1.958698438
B96: DDI Mar 1 | C96: 97970.06 | E96: =100000/C96 -> 1.020720004
A98: 11 | B98: Fundo cambial | D98: Vol | E98: 10000000 | G98: Cupom real no venc
D99: Cupom | E99: 8.95 | G99: 8
D100: Venc | E100: 2014-07-31
B101: Dados: | C101: 2014-12-28 | G101: PU Ajustado
B102: DDI Ago | C102: 94926.07 | D102: =((100000/C102)-1)*36000/C103 -> 8.9499995 | G102: =C102*(1+G99/100*C103/360) -> 99461.42668
B103: dc ago | C103: 215
B104: Qde cts | C104: =E98/C102*2 -> 210.6902772
B105: Resposta: Hedge em 28/12 – Compra de 211 contratos DDI Ago.
B106: Resultado final:
B107: Recebimento do ativo | E107: =100000/C102*E98 -> 10534513.86
B108: Perda DDI futuro | E108: =(G102-100000)*211/2 -> -56819.48549
B109: Recebimento líquido | E109: =E107+E108 -> 10477694.37 | G109: =(E109/10000000-1)*36000/C103 -> 7.998603464
A112: 12
C113: 1.07 | E113: CDI | F113: spot | G113: futuro | H113: DU | I113: DC
C114: 1.12 | E114: =Curvas!K7 -> 10.83 | F114: =Curvas!B26 -> 2.28947 | G114: =Curvas!B19 -> 2.35655274 | H114: =Curvas!B9 -> 79 | I114: =Curvas!B7 -> 113
B116: Importador | E116: sem hedge | G116: IF
A117: US$ | B117: 5000000 | D117: Passivo | E117: =B117*G114*B125 -> 11822373.64 | F117: Ativo | G117: =B118*B122*B125 -> 11822373.64 | H117: USD
A118: R$ | B118: =B117*F114 -> 11447350 | D118: Ativo | E118: =B118*(1+E114/100)^(H114/252) -> 11822373.64 | F118: Passivo | G118: =E118 -> 11822373.64 | H118: CDI
D119: Res. | E119: =E118-E117 -> 0 | G119: =G117-G118 -> 0
F120: Res. Liq | G120: =E119+G119 -> 0
B121: =(1+E114/100)^(H114/252) -> 1.032760739
B122: =G114/F114 -> 1.029300554
B123: =(B121/B122-1)*36000/I114 -> 1.070979456
B125: 1.003361686
B128: IF | E128: IMP | G128: BACEN
A129: US$ | B129: 5000000 | D129: Passivo | E129: =G117 -> 11822373.64 | F129: Ativo | G129: =B130*B134*B137 -> 11828055.55 | H129: USD
A130: R$ | B130: =B118 -> 11447350 | D130: Ativo | E130: =G118 -> 11822373.64 | F130: Passivo | G130: =E130 -> 11822373.64 | H130: CDI
D131: Res. | E131: =E130-E129 -> 0 | G131: =G129-G130 -> 5681.909287
F132: Res. Liq | G132: =E131+G131 -> 5681.909287
B133: =(1+E133/100)^(H114/252) -> 1.03325709 | E133: 11
B134: =G114/F114 -> 1.029300554
B135: =(B133/B134-1)*36000/I114 -> 1.224607742
B137: 1.003843908

Sheet Graficos CC
A1: 2011-01-17 | B1: 1.95 | D1: 2011-02-21 | E1: 2.38
A2: 2011-01-18 | B2: 2.28 | D2: 2011-02-22 | E2: 1.93
A3: 2011-01-19 | B3: 1.75 | D3: 2011-02-23 | E3: 1.86
A4: 2011-01-20 | B4: 1.75 | D4: 2011-02-24 | E4: 3.21
A5: 2011-01-21 | B5: 1.56 | D5: 2011-02-25 | E5: 2.74
A6: 2011-01-24 | B6: 1.77 | D6: 2011-02-28 | E6: 2.7
A7: 2011-01-26 | B7: 2.43 | D7: 2011-03-01 | E7: 2.61
A8: 2011-01-27 | B8: 0.61 | D8: 2011-03-02 | E8: 3.1
A9: 2011-01-28 | B9: 0.13 | D9: 2011-03-03 | E9: 3.63
A10: 2011-01-31 | B10: 2.43 | D10: 2011-03-04 | E10: 3.77
A11: 2011-02-01 | B11: 3.35 | D11: 2011-03-09 | E11: 1.85
A12: 2011-02-02 | B12: 1.23 | D12: 2011-03-10 | E12: 2.3
A13: 2011-02-03 | B13: 1.58 | D13: 2011-03-11 | E13: 2.38
A14: 2011-02-04 | B14: 1.19 | D14: 2011-03-14 | E14: 2.94
A15: 2011-02-07 | B15: 1.3 | D15: 2011-03-15 | E15: 2.29
A16: 2011-02-08 | B16: 3.88 | D16: 2011-03-16 | E16: 2.46
A17: 2011-02-09 | B17: 3.67 | D17: 2011-03-17 | E17: 0.5500000002
A18: 2011-02-10 | B18: 1.19 | D18: 2011-03-18 | E18: 3.14
A19: 2011-02-11 | B19: 2.38 | D19: 2011-03-21 | E19: 3.47
A20: 2011-02-14 | B20: 2.15 | D20: 2011-03-22 | E20: 2.96
A21: 2011-02-15 | B21: 2.01 | D21: 2011-03-23 | E21: 3.22
A22: 2011-02-16 | B22: 1.64 | D22: 2011-03-24 | E22: 2.98
A23: 2011-02-17 | B23: 3.55 | D23: 2011-03-25 | E23: 2.77
A24: 2011-02-18 | B24: 2.75 | D24: 2011-03-28 | E24: 2.44
A25: 2011-02-21 | B25: 2.51 | D25: 2011-03-29 | E25: 3.75
A26: 2011-02-22 | B26: 1.73 | D26: 2011-03-30 | E26: 5.35
A27: 2011-02-23 | B27: 1.52 | D27: 2011-03-31 | E27: 3.41
A28: 2011-02-24 | B28: 3.76 | D28: 2011-04-01 | E28: 5.05
A29: 2011-02-25 | B29: 2.95 | D29: 2011-04-04 | E29: 4.39
A30: 2011-02-28 | B30: 2.8 | D30: 2011-04-05 | E30: 3.47
A31: 2011-03-01 | B31: 2.580000001 | D31: 2011-04-06 | E31: 2.9
A32: 2011-03-02 | B32: 3.500000001 | D32: 2011-04-07 | E32: 7.11
A33: 2011-03-03 | B33: 4.5 | D33: 2011-04-08 | E33: 6.31
A34: 2011-03-04 | B34: 4.71 | D34: 2011-04-11 | E34: 3.49
A35: 2011-03-09 | B35: 1.25 | D35: 2011-04-12 | E35: 2.56
A36: 2011-03-10 | B36: 1.910000001 | D36: 2011-04-13 | E36: 3.15
A37: 2011-03-11 | B37: 2.14 | D37: 2011-04-14 | E37: 4.4
A38: 2011-03-14 | B38: 3.090000001 | D38: 2011-04-15 | E38: 4.58
A39: 2011-03-15 | B39: 1.99 | D39: 2011-04-18 | E39: 2.41
A40: 2011-03-16 | B40: 2.4 | D40: 2011-04-19 | E40: 6.58
A41: 2011-03-17 | B41: -1.11 | D41: 2011-04-20 | E41: 6.1
A42: 2011-03-18 | B42: 3.7 | D42: 2011-04-25 | E42: 4.85
A43: 2011-03-21 | B43: 4.27 | D43: 2011-04-26 | E43: 6.3
A44: 2011-03-22 | B44: 3.270000001 | D44: 2011-04-27 | E44: 4.94
A45: 2011-03-23 | B45: 3.83 | D45: 2011-04-28 | E45: 4.74
A46: 2011-03-24 | B46: 3.39 | D46: 2011-04-29 | E46: 8.05
A47: 2011-03-25 | B47: 2.96 | D47: 2011-05-02 | E47: 5.82
A48: 2011-03-28 | B48: 2.230000001 | D48: 2011-05-03 | E48: 2.7
A49: 2011-03-29 | B49: 4.93 | D49: 2011-05-04 | E49: 2.21
A50: 2011-03-30 | B50: 8.16 | D50: 2011-05-05 | E50: 1.06
A51: 2011-03-31 | B51: 4.1 | D51: 2011-05-06 | E51: 5.05
A52: 2011-04-01 | B52: 7.33 | D52: 2011-05-09 | E52: 3.39
A53: 2011-04-04 | B53: 6.080000001 | D53: 2011-05-10 | E53: 6.43
A54: 2011-04-05 | B54: 4.09 | D54: 2011-05-11 | E54: 2.18
A55: 2011-04-06 | B55: 2.75 | D55: 2011-05-12 | E55: 3.47
A56: 2011-04-07 | B56: 11.36 | D56: 2011-05-13 | E56: 1.84
A57: 2011-04-08 | B57: 9.69 | D57: 2011-05-16 | E57: 3.64
A58: 2011-04-11 | B58: 3.54 | D58: 2011-05-17 | E58: 5.18
A59: 2011-04-12 | B59: 1.66 | D59: 2011-05-18 | E59: 6.73
A60: 2011-04-13 | B60: 3.19 | D60: 2011-05-19 | E60: 4.23
A61: 2011-04-14 | B61: 5.870000001 | D61: 2011-05-20 | E61: 4.37
A62: 2011-04-15 | B62: 6.240000001 | D62: 2011-05-23 | E62: 1.56
A63: 2011-04-18 | B63: 1.27 | D63: 2011-05-24 | E63: 5.64
A64: 2011-04-19 | B64: 10.41 | D64: 2011-05-25 | E64: 3.53
A65: 2011-04-20 | B65: 8.780000001 | D65: 2011-05-26 | E65: 5.860000001
A66: 2011-04-25 | B66: 6.110000001 | D66: 2011-05-27 | E66: 6.76
A67: 2011-04-26 | B67: 9.41 | D67: 2011-05-30 | E67: 4.83
A68: 2011-04-27 | B68: 5.23 | D68: 2011-05-31 | E68: 6.77
A69: 2011-04-28 | B69: 4.890000001 | D69: 2011-06-01 | E69: 2.04
A70: 2011-04-29 | B70: 12.91 | D70: 2011-06-02 | E70: 5.37
A71: 2011-05-02 | B71: 7.070000001 | D71: 2011-06-03 | E71: 4.95
A72: 2011-05-03 | B72: -0.2399999992 | D72: 2011-06-06 | E72: 2.28
A73: 2011-05-04 | B73: -1.529999999 | D73: 2011-06-07 | E73: 4.69
A74: 2011-05-05 | B74: -3.79 | D74: 2011-06-08 | E74: 2.87
A75: 2011-05-06 | B75: 6.170000001 | D75: 2011-06-09 | E75: 2.51
A76: 2011-05-09 | B76: 1.910000001 | D76: 2011-06-10 | E76: 1.99
A77: 2011-05-10 | B77: 10.43 | D77: 2011-06-13 | E77: 4.74
A78: 2011-05-11 | B78: -1.19 | D78: 2011-06-14 | E78: 4.89
A79: 2011-05-12 | B79: 2.44 | D79: 2011-06-15 | E79: -0.1799999998
A80: 2011-05-13 | B80: -1.66 | D80: 2011-06-16 | E80: 0.09000000001
A81: 2011-05-16 | B81: 3.690000001 | D81: 2011-06-17 | E81: 6.270000001
A82: 2011-05-17 | B82: 8.290000001 | D82: 2011-06-20 | E82: 3.96
A83: 2011-05-18 | B83: 12.8 | D83: 2011-06-21 | E83: 5.180000001
A84: 2011-05-19 | B84: 4.710000002 | D84: 2011-06-22 | E84: 3.820000001
A85: 2011-05-20 | B85: 5.28 | D85: 2011-06-24 | E85: -0.01999999938
A86: 2011-05-23 | B86: -3.929999999 | D86: 2011-06-27 | E86: 3.82
A87: 2011-05-24 | B87: 9.970000001 | D87: 2011-06-28 | E87: 7.83
A88: 2011-05-25 | B88: 2.57 | D88: 2011-06-29 | E88: 6.13
A89: 2011-05-26 | B89: 11.33 | D89: 2011-06-30 | E89: 6.660000001
A90: 2011-05-27 | B90: 15.72 | D90: 2011-07-01 | E90: 4.980000001
A91: 2011-05-30 | B91: 8.86 | D91: 2011-07-04 | E91: 5.820000001
A92: 2011-05-31 | B92: 15.15 | D92: 2011-07-05 | E92: 2.44
A93: 2011-06-01 | B93: -4.179999998 | D93: 2011-07-06 | E93: 2.320000001
A94: 2011-06-02 | B94: 9.470000001 | D94: 2011-07-07 | E94: 5.89
A95: 2011-06-03 | B95: 8.430000001 | D95: 2011-07-08 | E95: 1.08
A96: 2011-06-06 | B96: -4.129999997 | D96: 2011-07-11 | E96: -0.6299999995
A97: 2011-06-07 | B97: 7.280000003 | D97: 2011-07-12 | E97: 4.120000001
A98: 2011-06-08 | B98: -1.01 | D98: 2011-07-13 | E98: 4.290000001
A99: 2011-06-09 | B99: -2.519999997 | D99: 2011-07-14 | E99: 2.840000001
A100: 2011-06-10 | B100: -5.159999998 | D100: 2011-07-15 | E100: 2.670000001
A101: 2011-06-13 | B101: 11.1 | D101: 2011-07-18 | E101: 2.200000001
A102: 2011-06-14 | B102: 12.95 | D102: 2011-07-19 | E102: 8.73
A103: 2011-06-15 | B103: -21.21 | D103: 2011-07-20 | E103: 6.680000001
A104: 2011-06-16 | B104: -20.85 | D104: 2011-07-21 | E104: 7.050000001
A105: 2011-06-17 | B105: 25.21 | D105: 2011-07-22 | E105: 5.310000001
A106: 2011-06-20 | B106: 10.34 | D106: 2011-07-25 | E106: 8.77
A107: 2011-06-21 | B107: 23.64000001 | D107: 2011-07-26 | E107: 7.780000001
A108: 2011-06-22 | B108: 10.35 | D108: 2011-07-27 | E108: -4.37
A109: 2011-06-24 | B109: -41.9 | D109: 2011-07-28 | E109: 1.49
A110: 2011-06-27 | B110: 24.13 | D110: 2011-07-29 | E110: 7.71
A111: 2011-06-28 | B111: 157.8 | D111: 2011-08-01 | E111: 1.540000001
A112: 2011-06-29 | B112: -145.53 | D112: 2011-08-02 | E112: -1.43
A113: 2011-06-30 | B113: 290.93 | D113: 2011-08-03 | E113: 4.44
D114: 2011-08-04 | E114: -3.279999999
D115: 2011-08-05 | E115: -1.679999999
D116: 2011-08-08 | E116: -5
D117: 2011-08-09 | E117: -9.119999999
D118: 2011-08-10 | E118: 10.47
D119: 2011-08-11 | E119: 0.3400000006
D120: 2011-08-12 | E120: 8.840000001
D121: 2011-08-15 | E121: 14.46
D122: 2011-08-16 | E122: 4.69
D123: 2011-08-17 | E123: 5.970000001
D124: 2011-08-18 | E124: -7.669999999
D125: 2011-08-19 | E125: 6.250000001
D126: 2011-08-22 | E126: -1.49
D127: 2011-08-23 | E127: 2.780000001
D128: 2011-08-24 | E128: -0.5099999983
D129: 2011-08-25 | E129: -0.7999999988
D130: 2011-08-26 | E130: 11.03
D131: 2011-08-29 | E131: 16.8
D132: 2011-08-30 | E132: 12.25
D133: 2011-08-31 | E133: 4.630000001
D134: 2011-09-01 | E134: -9.369999998
D135: 2011-09-02 | E135: -24.49
D136: 2011-09-05 | E136: -10.01
D137: 2011-09-06 | E137: -5.629999999
D138: 2011-09-08 | E138: 1.980000001
D139: 2011-09-09 | E139: -20.38
D140: 2011-09-12 | E140: -38.1
D141: 2011-09-13 | E141: -18.88
D142: 2011-09-14 | E142: -8.099999999
D143: 2011-09-15 | E143: 21.7
D144: 2011-09-16 | E144: -11.93
D145: 2011-09-19 | E145: -95.92
D146: 2011-09-20 | E146: -22.16
D147: 2011-09-21 | E147: -100.07
D148: 2011-09-22 | E148: -111.9
D149: 2011-09-23 | E149: 104.59
D150: 2011-09-26 | E150: 78.84
D151: 2011-09-27 | E151: 157.73
D152: 2011-09-28 | E152: -91.99999999
D153: 2011-09-29 | E153: -176.47
D154: 2011-09-30 | E154: -158.44

Sheet Spot
D3: Spot | F3: Receita | H3: Vol | J3: Linha | K3: CDI
D4: 2.28 | F4: 2000 | H4: 1000000 | J4: 1.28 | K4: 10.91
C7: Liq D0 | F7: Prazo | H7: Fator
B8: Rec | C8: Reais | F8: 2 | G8: DU | H8: =(1+K4/100)^(F8/252) -> 1.000822154
B9: Custo | C9: US$ | F9: 4 | G9: DC | H9: =(1+J4/100*F9/360) -> 1.000142222
F11: Spread US$ x BRL | H11: =H8/H9 -> 1.000679835
D13: US$-DO | F13: US$ Final
D14: =D4/H11 -> 2.278451028 | F14: =D14+F4/H4 -> 2.280451028
C17: Liq D1 | F17: Prazo | H17: Fator
B18: Rec | C18: Reais | F18: 1 | G18: DU | H18: =(1+K4/100)^(F18/252) -> 1.000410993
B19: Custo | C19: US$ | F19: 3 | G19: DC | H19: =(1+J4/100*F19/360) -> 1.000106667
F21: Spread US$ x BRL | H21: =H18/H19 -> 1.000304294
D23: US$-DO | F23: US$ Final
D24: =D4/H21 -> 2.279306422 | F24: =D24+F4/H4 -> 2.281306422

Sheet Arbitragem
C3: Obter cotações moeda: | J3: Obter cotações moeda:
M4: compra | N4: venda
B5: Moeda A | C5: Real/USD | E5: 2.2755 | J5: Moeda A | K5: Real/USD | M5: 2.2783 | N5: 2.2784
B6: Moeda B | C6: US$/EUR | E6: 1.2916 | J6: Moeda B | K6: US$/EUR | M6: 1.2915 | N6: 1.2916
C8: REAL/EUR | E8: =E5*E6 -> 2.9390358 | K8: REAL/EUR | M8: =M5*M6 -> 2.94242445 | N8: =N6*N5 -> 2.94278144
M10: compra | N10: venda
B11: Moeda A | C11: Real/USD | E11: 2.2755 | J11: Moeda A | K11: Real/USD | M11: 2.2783 | N11: 2.2784
B12: Moeda A | C12: ARS/USD | E12: 8.4113 | J12: Moeda A | K12: ARS/USD | M12: 8.4074 | N12: 8.4144
C14: REAL/ARS | E14: =E11*1/E12 -> 0.2705289313 | K14: REAL/ARS | M14: =M11/N12 -> 0.270762027 | N14: =N11/M12 -> 0.2709993577

Sheet Futuro
A2: Ex 1
N3: =Curvas!B7 -> 113
F4: Cotação | G4: Ajuste | H4: Vr. Uint | I4: p/100 ct | J4: Liq. | N4: Data | O4: US$
E5: compra - D0 | F5: 2259.5 | N5: 2014-09-11 | O5: 2.2866
E6: D0 | F6: 2261.33 | G6: =F6-F5 -> 1.83 | H6: =G6*50 -> 91.5 | I6: =H6*100 -> 9150 | M6: =N6-$N$5 -> 1 | N6: 2014-09-12 | O6: 2.287289
E7: D1 | F7: 2262.5 | G7: =F7-F6 -> 1.17 | H7: =G7*50 -> 58.5 | I7: =H7*100 -> 5850 | J7: =I6 -> 9150 | M7: =N7-$N$5 -> 7 | N7: 2014-09-18 | O7: 2.291422
E8: D2 | F8: 2244.18 | G8: =F8-F7 -> -18.32 | H8: -916 | I8: -91600 | J8: =J7+I7 -> 15000 | M8: 14 | N8: 2014-09-25 | O8: 2.295746
E9: D3 | F9: 2257.1 | G9: 12.92 | H9: 646 | I9: 64600 | J9: =J8+I8 -> -76600 | M9: 21 | N9: 2014-10-02 | O9: 2.30007
E10: D4 | F10: 2258.7 | G10: 1.6 | H10: 80 | I10: 8000 | J10: -12000 | M10: 33 | N10: 2014-10-14 | O10: 2.307483
E11: venda - D5 | F11: 2270 | G11: 11.3 | H11: 565 | I11: 56500 | J11: -4000 | M11: 62 | N11: 2014-11-12 | O11: 2.326235
E12: D6 | J12: 52500 | M12: 81 | N12: 2014-12-01 | O12: 2.338558
M13: 91 | N13: 2014-12-11 | O13: 2.345044
M14: 123 | N14: 2015-01-12 | O14: 2.364422
M15: 153 | N15: 2015-02-11 | O15: 2.382588
M16: 172 | N16: 2015-03-02 | O16: 2.394094
I17: Spline | J17: =_xll.SRS1Splines.Functions.Cubic_Spline(M6:M27,O6:O27,N3) ->  | M17: 181 | N17: 2015-03-11 | O17: 2.399544
I18: Linear | J18: =O13+(O14-O13)*(N3-M13)/(M14-M13) -> 2.358366375 | M18: 263 | N18: 2015-06-01 | O18: 2.454144
M19: 273 | N19: 2015-06-11 | O19: 2.460803
M20: 355 | N20: 2015-09-01 | O20: 2.515895
M21: 365 | N21: 2015-09-11 | O21: 2.522613
M22: 456 | N22: 2015-12-11 | O22: 2.581253
M23: 547 | N23: 2016-03-11 | O23: 2.639894
M24: 732 | N24: 2016-09-12 | O24: 2.759108
M25: 1096 | N25: 2017-09-11 | O25: 2.959882 | Q25: Vender inclinação | S25: Comprar curto | U25: 2286
C26: Aj. = 50000/1000*(Pontos Aj.) | F26: Aj - Aj Ant. | H26: 75 | M26: 1461 | N26: 2018-09-11 | O26: 3.156077 | S26: Vender longo | U26: 3347
E27: Cotação | F27: Pontos Aj. | G27: Aj Diário | H27: Acumulado | M27: 1826 | N27: 2019-09-11 | O27: 3.34664
A28: Ex 2 | D28: Venda | E28: 2465.5 | S28: Vender Spread | U28: =U26-U25 -> 1061
D29: 2014-01-05 | E29: 2461.13 | F29: =E29-E28 -> -4.37 | G29: =F29*$H$26*50 -> -16387.5 | H29: =G29 -> -16387.5
D30: =D29+1 -> 2014-01-06 | E30: 2476.69 | F30: =E30-E29 -> 15.56 | G30: 58350 | H30: =H29+G30 -> 41962.5
D31: =D30+1 -> 2014-01-07 | E31: 2461.51 | F31: -15.18 | G31: -56925 | H31: =H30+G31 -> -14962.5
D32: =D31+1+2 -> 2014-01-10 | E32: 2452.94 | F32: -8.57 | G32: -32137.5 | H32: -47100 | N32: 2
D33: 2014-01-11 | E33: 2470.23 | F33: 17.29 | G33: 64837.5 | H33: 17737.5 | N33: Data | O33: US$
D34: 2014-01-12 | E34: 2445.48 | F34: -24.75 | G34: -92812.5 | H34: -75075 | N34: 2014-09-11 | O34: 2.342862901
D35: 2014-01-13 | E35: 2443.34 | F35: -2.14 | G35: -8025 | H35: -83100 | N35: 2014-09-12 | O35: 2.343683813
D36: 2014-01-14 | E36: 2445.06 | F36: 1.72 | G36: 6450 | H36: -76650 | N36: 2014-09-18 | O36: 2.348598303
D37: =D36+1+2 -> 2014-01-17 | E37: 2444.1 | F37: -0.96 | G37: -3600 | H37: -80250 | N37: 2014-09-25 | O37: 2.354308069
D38: 2014-01-18 | E38: 2460.05 | F38: 15.95 | G38: 59812.5 | H38: -20437.5 | N38: 2014-10-02 | O38: 2.359992197
D39: 2014-01-19 | E39: 2460.04 | F39: -0.01 | G39: -37.5 | H39: -20475 | N39: 2014-10-14 | O39: 2.369676773
D40: 2014-01-20 | E40: 2457.31 | F40: -2.73 | G40: -10237.5 | H40: -30712.5 | N40: 2014-11-12 | O40: 2.392770123
D41: 2014-01-21 | E41: 2423.73 | F41: -33.58 | G41: -125925 | H41: -156637.5 | N41: 2014-12-01 | O41: 2.407661669
D42: =D41+1+2 -> 2014-01-24 | E42: 2414.18 | F42: -9.55 | G42: -35812.5 | H42: -192450 | N42: 2014-12-11 | O42: 2.415423461
D43: =D42+1+1 -> 2014-01-26 | E43: 2395.83 | F43: -18.35 | G43: -68812.5 | H43: -261262.5 | N43: 2015-01-12 | O43: 2.439909605
D44: 2014-01-27 | E44: 2393.03 | F44: -2.8 | G44: -10500 | H44: -271762.5 | N44: 2015-02-11 | O44: 2.462378789
D45: 2014-01-28 | E45: 2376.95 | F45: -16.08 | G45: -60300 | H45: -332062.5 | N45: 2015-03-02 | O45: 2.476365723
D46: =D45+1+2 -> 2014-01-31 | E46: 2336.7 | F46: -40.25 | G46: -150937.5 | H46: -483000 | N46: 2015-03-11 | O46: 2.482925189
D47: =D46+1 -> 2014-02-01 | E47: 2332.46 | F47: -4.24 | G47: -15900 | H47: -498900 | N47: 2015-06-01 | O47: 2.540737157
D48: 2014-02-02 | E48: 2339.06 | F48: 6.6 | G48: 24750 | H48: -474150 | N48: 2015-06-11 | O48: 2.547546725
D49: 2014-02-03 | E49: 2324.56 | F49: -14.5 | G49: -54375 | H49: -528525 | N49: 2015-09-01 | O49: 2.601411673
D50: 2014-02-04 | E50: 2332.23 | F50: 7.67 | G50: 28762.5 | H50: -499762.5 | N50: 2015-09-11 | O50: 2.607739897
D51: =D50+1+2+2 -> 2014-02-09 | E51: 2319.63 | F51: -12.6 | G51: -47250 | H51: -547012.5 | N51: 2015-12-11 | O51: 2.662922369
D52: =D51+1 -> 2014-02-10 | E52: 2334.3 | F52: 14.67 | G52: 55012.5 | H52: -492000 | N52: 2016-03-11 | O52: 2.713772223 | Q52: Comprar inclinação | S52: Vender curto | U52: 2343 | V52: =U52-U25 -> 57 | W52: =V52*50 -> 2850
D53: 2014-02-11 | E53: 2318.12 | F53: -16.18 | G53: -60675 | H53: -552675 | N53: 2016-09-12 | O53: 2.803791003 | S53: Comprar longo | U53: 2970 | V53: =U53-U26 -> -377 | W53: =V53*50 -> -18850
D54: =D53+1+2 -> 2014-02-14 | E54: 2293.56 | F54: -24.56 | G54: -92100 | H54: -644775 | N54: 2017-09-11 | O54: 2.928631937
D55: =D54+1 -> 2014-02-15 | E55: 2291.43 | F55: -2.13 | G55: -7987.5 | H55: -652762.5 | N55: 2018-09-11 | O55: 2.984208005 | S55: Comprar Spread | U55: =U53-U52 -> 627
D56: 2014-02-16 | E56: 2297.36 | F56: 5.93 | G56: 22237.5 | H56: -630525 | N56: 2019-09-11 | O56: 2.970080753
D57: 2014-02-17 | E57: 2275.01 | F57: -22.35 | G57: -83812.5 | H57: -714337.5 | S57: Resultado | U57: =U55-U28 -> -434
D58: 2014-02-18 | E58: 2283.12 | F58: 8.11 | G58: 30412.5 | H58: -683925 | S58: Valor p/ct | U58: =U57*50 -> -21700
D59: =D58+1+2 -> 2014-02-21 | E59: 2284.49 | F59: 1.37 | G59: 5137.5 | H59: -678787.5
D60: =D59+1 -> 2014-02-22 | E60: 2306.46 | F60: 21.97 | G60: 82387.5 | H60: -596400
D61: 2014-02-23 | E61: 2297.56 | F61: -8.9 | G61: -33375 | H61: -629775
D62: 2014-02-24 | E62: 2338.81 | F62: 41.25 | G62: 154687.5 | H62: -475087.5
D63: 2014-02-25 | E63: 2321.21 | F63: -17.6 | G63: -66000 | H63: -541087.5
D64: =D63+1+2 -> 2014-02-28 | E64: 2295 | F64: -26.21 | G64: -98287.5 | H64: -639375
A67: Ex.3 | D67: Estimativa enviar EUR | F67: 2500000
D68: Com Hedge
C71: Ev 1 | D71: 12/7/x0 | E71: C | F71: =F67/50000 -> 50 | G71: 2885 | H71: jan/x1
C73: Ev 2 | D73: 18/10/x0
D74: Nova estimativa lucro | F74: 2300000
D75: Rolagem de posição para março
E77: V | F77: 50 | G77: 2931 | H77: jan/x1
E78: Resultado 1 | G78: =(G77-G71)*50*F77 -> 115000
E80: C | F80: =F74/50000 -> 46 | G80: 2920 | H80: mar/X1
C82: Ev 3 | D82: 31/01/x1 | E82: Apuração Lucro | G82: Valor Remessa
E83: 7719125 | G83: =E83*0.8 -> 6175300
C85: Ev 4 | D85: 10/02/x1 | E85: V | F85: 46 | G85: 2957.5
E86: Resultado 2 | G86: =(G85-G80)*50*F85 -> 86250
E88: Contrata câmbio p/remessa: | G88: 2956
E90: Total remessa | G90: =(G78+G83+G86)/G88*1000 -> 2157154.939
E92: Sem Hedge | G92: =G83/G88*1000 -> 2089073.072

Sheet Futuro 2
B3: 1 | C3: Em | D3: 2014-06-08
B5: Posição | C5: 10000000 | D5: passivo | E5: 2014-06-30
B6: Spot em 30/6 | C6: 2.9934
B7: Cotação fut jul | C7: 2985.2
B10: Hedge
B11: Compra | C11: 200 | D11: cts | E11: JUL
B13: posição em 30/6 | C13: =C5*C6 -> 29934000
B14: Res. Futuro | C14: =(C6*1000-C7)*50*C11 -> 82000 | D14: positivo
B16: Res. Hedge | C16: =C13-C14 -> 29852000
B17: Cot dólar | C17: =C16/C5 -> 2.9852
B21: 2
B23: Compra | C23: 230 | D23: cts
C24: 2600 | D24: cotação
B26: Pç Ajuste | C26: 2716.8
B28: Ajuste | C28: =(C26-C24)*50*C23 -> 1343200 | D28: positivo
B31: 3 | C31: Em | D31: 2014-04-05
B33: Posição | C33: 1000000 | D33: ativo | E33: 2014-04-30
B34: Spot em 30/4 | C34: 3.201
B35: Cotação fut maio | C35: 3171
B38: Hedge
B39: Venda | C39: =C33/50000 -> 20 | D39: cts | E39: mai
B41: posição em 30/4 | C41: =C33*C34 -> 3201000
B42: Res. Futuro | C42: =(C34*1000-C35)*50*C39 -> 30000 | D42: positivo
B44: Res. Hedge | C44: =C41-C42 -> 3171000
B45: Cot dólar | C45: =C44/C33 -> 3.171
B49: 4
B51: Compra | C51: 10 | D51: cts
C52: 1751 | D52: cotação
B54: Pç Ajuste no resgate | C54: 1806.7
B56: Ajuste | C56: =(C54-C52)*50*C51 -> 27850 | D56: positivo
